Cogmind - Beta 13 @@@ ROGUE MODE // 2024.05.13 @ 13:03:42 Player: anthonyiye Result: Destroyed by D-53 Grenadier with Mini Grenade Launcher Performance ------------- Evolutions (1) 500 Regions Visited (3) 600 Robots Destroyed (42) 210 Value Destroyed (853) 853 Prototype IDs (2) 40 Alien Tech Used (0) 0 Bonus (0) 0 TOTAL SCORE: 2203 Bonus ------- None Cogmind --------- Core Integrity 0/400 Matter 280/300 Energy 83/100 System Corruption 16% Temperature Cool (0) Movement Treading (160) Location -9/Mines Parts ------- > --- POWER (1) -------- (None) > --- PROPULSION (2) --- Light Treads Light Treads > --- UTILITY (4) ------ High-capacity Storage Unit > --- WEAPON (2) ------- (None) > --- INVENTORY (20) --- Light Nuclear Core Light Nuclear Core Aluminum Leg Aluminum Leg Wheel Compact Wheel Structural Scanner Sensor Array Sensor Array Hardened Medium Armor Plating High-powered Tractor Beam Light EM Pulse Cannon Light Assault Rifle Autogun Rocket Launcher Rocket Launcher Mini Grenade Launcher Peak State ------------ > --- POWER ------------ Ion Engine > --- PROPULSION ------- Light Treads Light Treads > --- UTILITY ---------- Improved Heat Sink High-capacity Storage Unit Hardened Light Armor Plating Hardened Medium Armor Plating > --- WEAPON ----------- Heavy EM Pulse Gun Heavy Assault Rifle > --- INVENTORY -------- Light Nuclear Core Light Nuclear Core Light Treads Light Treads Light Treads Aluminum Leg Aluminum Leg Wheel Compact Wheel Sensor Array Sensor Array Hardened Medium Armor Plating High-powered Tractor Beam Light EM Pulse Cannon Light Assault Rifle Autogun Rocket Launcher Mini Grenade Launcher Mini Grenade Launcher [Rating: 19] Favorites ----------- Power Ion Engine Engine Ion Engine Propulsion Light Treads Treads Light Treads Utility High-capacity Storage Unit Device Improved Heat Sink Storage High-capacity Storage Unit Hackware Hacking Suite Protection Hardened Medium Armor Plating Weapon Light Assault Rifle Energy Gun Heavy EM Pulse Gun Energy Cannon Light EM Pulse Cannon Ballistic Gun Light Assault Rifle Launcher Mini Grenade Launcher Build | -11 -10 -9 -9 ------- Run | Yrd Mat Mat Min Slots Evolved 2 | . . 2 . Power . | . . . . Propulsion . | . . . . Utility 2 | . . 2 . Weapon . | . . . . Parts Attached 26 | 7 4 11 4 Power 3 | 1 . 2 . Engine 3 | 1 . 2 . Core . | . . . . Reactor . | . . . . Propulsion 8 | 2 . 3 3 Treads 8 | 2 . 3 3 Leg . | . . . . Wheel . | . . . . Hover . | . . . . Flight . | . . . . Utility 6 | 1 2 3 . Device 1 | . . 1 . Storage 2 | 1 1 . . Processor . | . . . . Hackware 1 | . 1 . . Protection 2 | . . 2 . Artifact . | . . . . Weapon 9 | 3 2 3 1 Energy Gun 4 | 2 . 2 . Energy Cannon 1 | . 1 . . Ballistic Gun 2 | 1 . 1 . Ballistic Cannon . | . . . . Launcher 2 | . 1 . 1 Special Weapon . | . . . . Impact Weapon . | . . . . Slashing Weapon . | . . . . Piercing Weapon . | . . . . Special Melee Weapon . | . . . . Unidentified Prototypes . | . . . . Corrupted Parts 2 | . . . 2 System Corruption 11 | . . . 11 Parts Lost 18 | . 1 7 10 Power 3 | . . 2 1 Propulsion 5 | . . 2 3 Utility 4 | . . 1 3 Weapon 6 | . 1 2 3 Highest Loss Streak 9 | . 1 3 9 To Critical Strikes 1 | . . 1 . Average Slot Usage (%) 91 | . 99 85 93 Engine 11 | . 14 10 10 Treads 24 | . 28 21 20 Device 1 | . . 1 11 Storage 12 | . 14 11 11 Hackware 8 | . 13 5 . Protection 8 | . . 13 19 Energy Gun 8 | . 8 9 . Energy Cannon 2 | . 4 1 . Ballistic Gun 12 | . 14 11 10 Naked Turns . | . . . . Heaviest Build 65 | 13 50 65 65 Greatest Support 40 | 40 40 40 40 Greatest Overweight (x) 2 | 2 1 2 1 Average Overweight (x) . | . . 1 . Largest Inventory Capacity 20 | 8 20 20 20 Average Capacity 18 | 6 18 20 20 Most Carried 20 | 6 13 20 20 Average Carried 13 | 3 10 15 19 Final Capacity 20 | 8 20 20 20 Final Carried 20 | 6 11 20 17 Class Distribution -------------------- 86% | Mutant 13% | Scavenger-Mutant Dominant Class ---------------- Mutant | -10/Materials Mutant | -9/Materials Scavenger-Mutant | -9/Mines Resources | -11 -10 -9 -9 ----------- Run | Yrd Mat Mat Min Matter Collected 528 | 259 82 171 16 Remotely . | . . . . Salvage Created 1261 | . 414 744 103 Parts 96 | . 38 51 7 Haulers Intercepted 1 | . . 1 . Recyclers Shooed . | . . . . Parts Field Recycled . | . . . . Retrieved Matter . | . . . . Parts Self-Destructed . | . . . . Prevented . | . . . . Kills | -11 -10 -9 -9 ------- Run | Yrd Mat Mat Min Combat Hostiles Destroyed 27 | . 9 13 5 Guns 16 | . 4 12 . Cannons 2 | . 2 . . AOE 9 | . 3 1 5 Classes Destroyed 11 | . 8 3 . Worker 1 | . 1 . . Builder 4 | . 1 3 . Tunneler 1 | . 1 . . Hauler 1 | . . 1 . Recycler 2 | . 1 1 . Operator 2 | . 2 . . Watcher 4 | . 2 2 . Swarmer 12 | . 6 3 3 Grunt 8 | . 3 4 1 Brawler 2 | . . 1 1 Sentry 5 | . . 5 . Best Kill Streak 5 | . 5 5 5 Combat Bots Only 5 | . 3 4 5 Max Kills in Single Turn 3 | . 3 2 3 Gunslinging 1 | . . 1 . Exploded 3 | . 3 1 3 Melee . | . . . . Uniques/NPCs Destroyed . | . . . . Combat | -11 -10 -9 -9 -------- Run | Yrd Mat Mat Min Hostile Shots Fired 164 | . 35 88 41 Missed 45 | . 9 27 9 Damage Taken 2335 | . 302 903 1130 Core 449 | . 47 122 280 Absorbed by Shields . | . . . . Core Remaining (%) 90 | 100 81 . . Volleys Fired 82 | . 26 50 6 Largest 2 | . 2 2 2 Hottest 76 | . 76 76 68 Shots Fired 160 | . 52 99 9 Gun 142 | . 44 91 7 Cannon 15 | . 7 8 . Launcher 3 | . 1 . 2 Special . | . . . . Kinetic 81 | . 26 49 6 Thermal . | . . . . Explosive 3 | . 1 . 2 Electromagnetic 76 | . 25 50 1 Robot Hit Streak 17 | . 8 17 1 Robot Miss Streak 4 | . 4 4 2 Penetration Max . | . . . . Secondary Targets 4 | . 1 3 . Max Gunslinging Chain 1 | . 1 1 . Shots Hit Robots 102 | . 29 71 2 Core Hits 61 | . 22 33 6 Critical Kills . | . . . . Critical Parts Destroyed 1 | . 1 . . Critical Strikes 2 | . 1 1 . Destroy 1 | . 1 . . Corrupt 1 | . . 1 . Melee Attacks . | . . . . Impact . | . . . . Slashing . | . . . . Piercing . | . . . . Sneak Attacks . | . . . . Combat Hostiles . | . . . . Follow-up Attacks . | . . . . Damage Inflicted 2032 | . 745 1008 279 Guns 1103 | . 297 789 17 Cannons 341 | . 193 148 . Explosions 555 | . 250 43 262 Melee . | . . . . Ramming 33 | . 5 28 . Kinetic 395 | . 89 289 17 Thermal 143 | . 100 43 . Explosive 412 | . 150 . 262 Electromagnetic 1049 | . 401 648 . Impact . | . . . . Slashing . | . . . . Piercing . | . . . . Highest Corruption 16 | . . 5 16 Average Corruption 5 | . . 5 5 Corruption Purged . | . . . . Corruption Blocked . | . . . . Effects 19 | . . 18 1 Message Errors 8 | . . 8 . Matter Fused 3 | . . 3 . Energy Discharges 3 | . . 3 . Data Loss (minor) 2 | . . 1 1 Misfires 1 | . . 1 . Alerts 1 | . . 1 . Weapon Failures 1 | . . 1 . Overload Shots . | . . . . Overflow Damage 8 | . 8 . . Projectiles 8 | . 8 . . Explosions . | . . . . Melee . | . . . . Knockbacks . | . . . . Impact . | . . . . Kinetic . | . . . . Secondary . | . . . . Self-Inflicted Damage 107 | . 59 . 48 Shots 3 | . 2 . 1 Rammed 4 | . 1 3 . Targets Rammed 4 | . 1 3 . Kicked . | . . . . Crushed . | . . . . Highest Temperature 195 | . 106 195 . Average Temperature 56 | . 28 67 . Received Heat Transfer 399 | . 66 327 6 Siege Activations . | . . . . Robots Corrupted . | . . . . Combat Hostiles . | . . . . Parts Fried 4 | . 2 2 . Impact Corruptions . | . . . . Robots Melted . | . . . . Combat Hostiles . | . . . . Parts Melted . | . . . . Heat Transferred 250 | . 250 . . Parts Sabotaged . | . . . . Parts Stolen . | . . . . Parts Stripped . | . . . . Power Chain Reactions 3 | . 2 1 . Alert | -11 -10 -9 -9 ------- Run | Yrd Mat Mat Min Peak Influence 207 | . 183 207 148 Initial 18 | . . 9 18 Average 78 | . 74 79 126 Maximum Alert Level 1 | . . 1 . Low Security (%) 94 | 100 100 88 100 Level 1 5 | . . 11 . Level 2 . | . . . . Level 3 . | . . . . Level 4 . | . . . . Level 5 . | . . . . High Security . | . . . . Max Security . | . . . . Squads Dispatched 3 | . 1 2 . Investigation 2 | . . 2 . Extermination . | . . . . Reinforcement 1 | . 1 . . Assault . | . . . . Garrison . | . . . . Intercept . | . . . . Searches Triggered . | . . . . Construction Impeded . | . . . . Haulers Reinforced . | . . . . Active Scanning Responses . | . . . . Cargo Convoy Interrupts . | . . . . Stealth | -11 -10 -9 -9 --------- Run | Yrd Mat Mat Min Distress Signals 2 | . 1 1 . Communications Jammed . | . . . . Distress Signals . | . . . . Times Spotted 39 | . 16 16 7 Peak Tracking Total 5 | . 4 5 3 Tactical Retreats . | . . . . Traps | -11 -10 -9 -9 ------- Run | Yrd Mat Mat Min Traps Triggered 1 | . . 1 . Indirectly . | . . . . Trap Hack Attempts . | . . . . Triggered . | . . . . Disarmed 6 | . 6 . . Reprogrammed 6 | . . 6 . Reused 1 | . . 1 . Traps Extracted . | . . . . Installed . | . . . . Triggered 1 | . . 1 . Machines | -11 -10 -9 -9 ---------- Run | Yrd Mat Mat Min Machines Disabled . | . . . . Max in Single Turn . | . . . . Machines Repaired . | . . . . Machines Dismantled . | . . . . Machines Sabotaged . | . . . . Overloaded Fab Kills . | . . . . Hacking | -11 -10 -9 -9 --------- Run | Yrd Mat Mat Min Machines Accessed 7 | . 2 5 . Terminals 6 | . 2 4 . Fabricators . | . . . . Repair Stations . | . . . . Recycling Units 1 | . . 1 . Scanalyzers . | . . . . Garrison Access . | . . . . Total Hacks 18 | . 4 14 . Successful 11 | . 2 9 . Failed 7 | . 2 5 . Catastrophic 3 | . 2 1 . Database Lockouts . | . . . . Manual 4 | . 2 2 . Terminals 17 | . 4 13 . Fabricators . | . . . . Repair Stations . | . . . . Recycling Units 1 | . . 1 . Scanalyzers . | . . . . Garrison Access . | . . . . Terminal Hacks 10 | . 2 8 . Robot Analysis 1 | . . 1 . Prototype ID Bank 1 | . . 1 . Branch Access Points 1 | . . 1 . Alert Level 1 | . . 1 . Disarm Traps 1 | . 1 . . Reprogram Traps 1 | . . 1 . Dispatch Records 1 | . . 1 . Registered Components 1 | . 1 . . Zone Layout 2 | . . 2 . Fabricator Hacks . | . . . . Repair Station Hacks . | . . . . Recycling Unit Hacks 1 | . . 1 . Report Inventory 1 | . . 1 . Scanalyzer . | . . . . Garrison Access Hacks . | . . . . Unauthorized Hacks . | . . . . Terminals . | . . . . Fabricators . | . . . . Repair Stations . | . . . . Recycling Units . | . . . . Scanalyzers . | . . . . Garrison Access . | . . . . Data Cores Recovered 1 | . 1 . . Used . | . . . . Hacking Detections 5 | . 2 3 . Full Trace Events . | . . . . Feedback Events . | . . . . Feedback Blocked . | . . . . Robot Schematics Acquired . | . . . . Robots Built . | . . . . Authchips . | . . . . Time . | . . . . Total Robot Build Rating . | . . . . Part Schematics Acquired . | . . . . Parts Built . | . . . . Authchips . | . . . . Time . | . . . . Total Part Build Rating . | . . . . Parts Repaired . | . . . . Time . | . . . . Parts Recycled . | . . . . Recycled Matter . | . . . . Retrieved Matter . | . . . . Retrieved Components . | . . . . Parts Scanalyzed . | . . . . Part Schematics Acquired . | . . . . Parts Damaged . | . . . . Bothacking | -11 -10 -9 -9 ------------ Run | Yrd Mat Mat Min Used RIF Installer . | . . . . Robots Hacked . | . . . . Non-combat . | . . . . Combat . | . . . . Robot Hacks Applied . | . . . . Relay Couplers Released . | . . . . Fabnet Peak Effective % . | . . . . Robots Rewired . | . . . . Allies Hacked . | . . . . Hacks Repelled . | . . . . Allies | -11 -10 -9 -9 -------- Run | Yrd Mat Mat Min Total Allies . | . . . . Largest Group . | . . . . Highest-Rated Group . | . . . . Highest-Rated Ally . | . . . . Total Orders . | . . . . Ally Attacks . | . . . . Total Damage . | . . . . Kills . | . . . . Allies Corrupted . | . . . . Allies Melted . | . . . . Intel | -11 -10 -9 -9 ------- Run | Yrd Mat Mat Min Robot Analysis Total 1 | . . 1 . Derelict Logs Recovered . | . . . . Drone Launches . | . . . . Drone Recoveries . | . . . . Exploration | -11 -10 -9 -9 ------------- Run | Yrd Mat Mat Min Turns Passed 2336 | 80 881 1213 162 Spaces Moved 893 | 49 353 431 60 Core 17 | 17 . . . Treads 876 | 32 353 431 60 Legs . | . . . . Wheels . | . . . . Hover . | . . . . Flight . | . . . . Fastest Speed 50 | 50 160 240 160 Average Speed 228 | 132 225 240 236 Slowest Speed 320 | 160 240 320 240 Overloaded Moves . | . . . . Propulsion Burnouts . | . . . . Robots Hopped . | . . . . Cave-ins Triggered . | . . . . Exploration Rate (%) 34 | 4 68 44 20 Regions Visited 3 Branch Regions 1 Pre-discovered Areas . | . . . . Known Exits Taken 1 | . . 1 . Unknown Exits Taken 2 | 1 1 . . Scrap Searched . | . . . . Spaces Dug . | . . . . Terrain Destroyed 44 | . 20 3 21 Melee . | . . . . Projectile . | . . . . AOE 44 | . 20 3 21 Terrain Rammed . | . . . . Walls Destroyed . | . . . . Machines Disabled . | . . . . Actions | -11 -10 -9 -9 --------- Run | Yrd Mat Mat Min Total 1038 | 61 393 513 71 Wait 4 | . . 4 . Move 890 | 48 352 430 60 Hop . | . . . . Pick Up 26 | 5 7 13 1 Fast Attach 13 | 7 1 5 . Attach 10 | . 2 4 4 Detach 2 | 1 1 . . Swap 3 | . 1 2 . Drop 4 | . 2 2 . Fire 82 | . 26 50 6 Melee . | . . . . Ram . | . . . . Kick . | . . . . Crush 4 | . 1 3 . Escape Stasis . | . . . . Rewire . | . . . . Trap . | . . . . Miscellaneous . | . . . . Route ------- -11/Scrapyard -10/Materials (discovered 2 exits: *Mat / [*Min]) -9/Materials (discovered 3 exits: [*Mat] / *Min x2) -9/Mines (discovered 1 exit: [*Mat]) History --------- Turn | Location | Event 18 | -11/Scrapyard | Discovered new exit (range 15) 81 | -11/Scrapyard | Entered Materials 315 | -10/Materials | Build established: Mutant 319 | -10/Materials | Discovered new exit (range 15) 791 | -10/Materials | Discovered new exit (range 5) 962 | -10/Materials | Entered another Materials area 962 | -9/Materials | Evolved 2 slots: Utility x2 1158 | -9/Materials | Discovered new exit (range 15) 1574 | -9/Materials | Lost 3 parts (1n1u1w) 1742 | -9/Materials | Discovered new exit (range 10) 1969 | -9/Materials | Discovered new exit (range 7) 2071 | -9/Materials | Identified exit to Mines 2175 | -9/Materials | Entered Mines 2175 | -9/Mines | Discovered new exit (range 9) 2287 | -9/Mines | Received a Rocket Launcher from a helpful Derelict 2296 | -9/Mines | Assembled infested the area 2301 | -9/Mines | Assisted by a Guerilla fighting off Assembled 2321 | -9/Mines | Build established: Scavenger-Mutant 2324 | -9/Mines | Core integrity fell below 50% 2331 | -9/Mines | Core integrity fell below 20% 2332 | -9/Mines | System corruption reached 10% 2337 | -9/Mines | Destroyed by D-53 Grenadier with Mini Grenade Launcher Last Messages --------------- 02321_ The unstable cave ceiling collapses. 02321_ Mni. Grenade Launcher destroyed. 02321_ Lgt. Treads destroyed. 02322_ The unstable cave ceiling collapses. 02326_ Ion Engine destroyed. 02327_ Hvy. Assault Rifle destroyed. 02328_ The unstable cave ceiling collapses. 02328_ U-05 Engineer lays Concrete. 02328_ Lgt. Treads destroyed. 02329_ The unstable cave ceiling collapses. 02329_ U-05 Engineer lays Concrete. 02329_ Lgt. Treads destroyed. 02330_ U-05 Engineer lays Concrete. 02330_ Imp. Heat Sink destroyed. 02330_ Integrated Corrupted Lgt. Treads (+4). 02331_ The unstable cave ceiling collapses. 02331_ Integrated Corrupted Lgt. Treads (+7). 02331_ U-05 Engineer lays Concrete. 02333_ The unstable cave ceiling collapses. 02333_ U-05 Engineer builds a Wall. Map ----- +----------------------------------------------------+ | ??## #???? ???????????????? | | ???# ### #???# #?????????????????? | | ???# #?# #### #?????????????????? | | ???# #?# #?????????????????? | | ???# #?## #?????????????????? | | ???# #?# % ##?????????????????? | | ???# #?## ###??????????????????? | | ???# ### ##????????????????????? | | ???# ## ##?????##??????????????? | | ???# ## ##?##### #??????????????? | | ???# ### ###### #??????????????? | | ???# #?## # #??????????????? | | ???# ### # #???????????????? | | ???# ## ###???????????????? | | ???# ### %# ##??????????????? | | ???# ## %= d # ##?????????????? | | ???# %| d # ##????????????? | | ???##### # #????????????? | | ???????## # ####?????????? | | ??????### #?????????? | | ?????## ## #?????????? | | ?????# #????????????? | | ?????# #????????????? | | ?????## # #????????????? | | ??????# ##????????????? | | ??????## @ ###?????????????? | | ???????### # ##???????????????? | | ?????????### # #????????????????? | | ???????????#### ## #????????????????? | | ??????????????## ? ????????????????? | | ???????????????# ???????????????? | | ??????????????? #####??????????????? | | ??????????????? #??????????????????? | | ??????????????? #??????????????????? | | ??????????????? #??????????????????? | | ?????????????? #??????????????????? | | ??????????????? #??????????????????? | | ??????????????? #??????????????????? | | ??????????????? #??????????????????? | | ????????????????? ????????????????????? | | ??????????????????????????????????????? | | ??????????????????????????????????????? | | ??????????????????????????????????????? | | ??????????????????????????????????????? | | ??????????????????????????????????????? | | ??????????????????????????????????????? | | ??????????????????????????????????????? | | | | | | | +----------------------------------------------------+ Best States ------------- Heat Dissipation 42 Energy Generation 10 Energy Capacity 250 Matter Stores 300 Matter Capacity 300 Sight Range 16 Terrain Scan Density 10 Armor Coverage 375 Evasion (%) 50 Recoil Reduction 2 Offensive Hacking 10 Item Schematics ----------------- None Robot Schematics ------------------ None Fabricated ------------ Nothing Alien Tech Used ----------------- None Achievements -------------- None Challenges ------------ None Game ------ Seed SpacefoldBattleChip Manual? 0 Play Time 00:17:42 Cumulative 24.8 hours Start 2024.05.13 @ 12:47:47 End 2024.05.13 @ 13:03:42 Sessions 1 Manual Loads 0 Difficulty Rogue Special Mode None Game No. 21 Rogue 21 Adventurer 0 Explorer 0 Win Type - Total 1 Types 1/0/0/0/0/0/0/0/0 Lore% 19 Gallery% 24 Achievement% 25 Wizard Run 0 Options --------- Layout 1 ASCII 0 Keyboard 1 Movement Arrows Keybinds 0 Fullscreen 1 Font 32/SmallcapsGlow Map View 50x35 Zoom Use 0% Tactical HUD 1 Map Filters NONE Filters NONE Steam 0 RUN: f9c8a3ec-2547-44bf-9572-3c7c1432a07a